[Event "Late-Titled-Tuesday-Blitz-February-20-2024"]
[Site "Chess.com"]
[Date "2024.02.20"]
[Round "5"]
[White "Perecke"]
[Black "crescentmoon2411"]
[Result "1-0"]
[WhiteElo "2508"]
[BlackElo "2965"]
[TimeControl "180+1"]
[EndTime "14:56:42 PST"]
[Termination "Perecke won by resignation"]

1. e4 {[%clk 0:02:53.8]} 1... c6 {[%clk 0:02:57.6]} 2. d4 {[%clk 0:02:53.5]}
2... d5 {[%clk 0:02:57.2]} 3. Nc3 {[%clk 0:02:54.2]} 3... dxe4 {[%clk
0:02:57.2]} 4. Nxe4 {[%clk 0:02:55.1]} 4... e5 {[%clk 0:02:57.7]} 5. dxe5 {[%clk
0:02:50.8]} 5... Qa5+ {[%clk 0:02:56.1]} 6. c3 {[%clk 0:02:41.7]} 6... Qxe5
{[%clk 0:02:57]} 7. Qe2 {[%clk 0:02:42.1]} 7... Bf5 {[%clk 0:02:55]} 8. Ng3
{[%clk 0:02:40.4]} 8... Qxe2+ {[%clk 0:02:54.2]} 9. Bxe2 {[%clk 0:02:41.3]} 9...
Be6 {[%clk 0:02:54.9]} 10. Nf3 {[%clk 0:02:40.5]} 10... h6 {[%clk 0:02:49.3]}
11. Be3 {[%clk 0:02:37.3]} 11... Nf6 {[%clk 0:02:35.7]} 12. O-O {[%clk
0:02:18.6]} 12... Bd6 {[%clk 0:02:07.6]} 13. Nd4 {[%clk 0:02:17.1]} 13... O-O
{[%clk 0:01:50.7]} 14. Nxe6 {[%clk 0:02:15.4]} 14... fxe6 {[%clk 0:01:51.6]} 15.
Bc4 {[%clk 0:02:12]} 15... Nd5 {[%clk 0:01:50.2]} 16. Ne4 {[%clk 0:02:12.3]}
16... Be7 {[%clk 0:01:48.3]} 17. Bc5 {[%clk 0:02:00.8]} 17... Rf4 {[%clk
0:01:32.2]} 18. Rfe1 {[%clk 0:01:12.2]} 18... Rxe4 {[%clk 0:01:28.1]} 19. Rxe4
{[%clk 0:01:13.1]} 19... Bxc5 {[%clk 0:01:27.7]} 20. Rxe6 {[%clk 0:01:10.7]}
20... Nd7 {[%clk 0:01:08.8]} 21. b4 {[%clk 0:01:10.9]} 21... Bb6 {[%clk
0:01:06.8]} 22. b5 {[%clk 0:01:10.7]} 22... Nc5 {[%clk 0:01:04]} 23. bxc6 {[%clk
0:01:11.1]} 23... Nxe6 {[%clk 0:00:24.8]} 24. cxb7 {[%clk 0:01:04.4]} 24... Rb8
{[%clk 0:00:25.3]} 25. Bxd5 {[%clk 0:01:03.5]} 25... Kf8 {[%clk 0:00:25.7]} 26.
Bxe6 {[%clk 0:01:01.6]} 26... Rxb7 {[%clk 0:00:26.4]} 27. Kf1 {[%clk 0:00:54.9]}
27... Rc7 {[%clk 0:00:25.9]} 28. c4 {[%clk 0:00:52.8]} 28... Rc5 {[%clk
0:00:26.5]} 29. Bd5 {[%clk 0:00:51.4]} 29... Ra5 {[%clk 0:00:26.7]} 30. a4
{[%clk 0:00:51.5]} 30... Ke7 {[%clk 0:00:26.7]} 31. Ke2 {[%clk 0:00:49.4]} 31...
Kd6 {[%clk 0:00:26.8]} 32. f4 {[%clk 0:00:46.5]} 32... Kc5 {[%clk 0:00:25.7]}
33. Kd3 {[%clk 0:00:46.8]} 33... Bc7 {[%clk 0:00:25.9]} 34. g3 {[%clk
0:00:42.3]} 34... Ra6 {[%clk 0:00:26.4]} 35. f5 {[%clk 0:00:38.3]} 35... Rb6
{[%clk 0:00:26.5]} 36. Re1 {[%clk 0:00:30.9]} 36... Rb3+ {[%clk 0:00:26.8]} 37.
Kc2 {[%clk 0:00:31.3]} 37... Ra3 {[%clk 0:00:27.2]} 38. Re7 {[%clk 0:00:31.5]}
38... Ba5 {[%clk 0:00:26.3]} 39. Rxa7 {[%clk 0:00:24.8]} 39... Bc3 {[%clk
0:00:25.7]} 40. Be6 {[%clk 0:00:18.3]} 40... Bf6 {[%clk 0:00:24.7]} 41. a5
{[%clk 0:00:16.9]} 41... Rc3+ {[%clk 0:00:23.8]} 42. Kd2 {[%clk 0:00:16.3]}
42... Ra3 {[%clk 0:00:24]} 43. a6 {[%clk 0:00:13.4]} 43... Be5 {[%clk
0:00:24.1]} 44. Ra8 {[%clk 0:00:11]} 44... Kd4 {[%clk 0:00:22.1]} 45. Rd8+
{[%clk 0:00:10.7]} 45... Ke4 {[%clk 0:00:21.7]} 46. Bd5+ {[%clk 0:00:10.8]}
46... Kxf5 {[%clk 0:00:21.9]} 47. Bb7 {[%clk 0:00:10.9]} 47... Bf6 {[%clk
0:00:21.4]} 48. Ra8 {[%clk 0:00:10.8]} 48... Bd4 {[%clk 0:00:21.1]} 49. Rf8+
{[%clk 0:00:09.6]} 49... Ke5 {[%clk 0:00:21.1]} 50. Re8+ {[%clk 0:00:09.7]}
50... Kd6 {[%clk 0:00:20.6]} 51. Rd8+ {[%clk 0:00:10]} 51... Kc5 {[%clk
0:00:20.6]} 52. Rc8+ {[%clk 0:00:10.1]} 52... Kb4 {[%clk 0:00:20.9]} 53. Ke2
{[%clk 0:00:08.4]} 53... Bc5 {[%clk 0:00:21]} 54. Rc7 {[%clk 0:00:07.6]} 54...
g5 {[%clk 0:00:20.6]} 55. Rc6 {[%clk 0:00:07.4]} 55... h5 {[%clk 0:00:20.3]} 56.
Rh6 {[%clk 0:00:06.5]} 56... g4 {[%clk 0:00:19.3]} 57. Rxh5 {[%clk 0:00:06.8]}
57... Kxc4 {[%clk 0:00:19.2]} 58. Rg5 {[%clk 0:00:06.7]} 58... Ra2+ {[%clk
0:00:19.3]} 59. Kd1 {[%clk 0:00:07]} 59... Kd3 {[%clk 0:00:19.4]} 60. Rxc5
{[%clk 0:00:06.7]} 60... Ra1+ {[%clk 0:00:18.7]} 61. Rc1 {[%clk 0:00:07.3]}
61... Ra2 {[%clk 0:00:19.3]} 62. Rb1 {[%clk 0:00:07.3]} 62... Ra3 {[%clk
0:00:18.6]} 63. Bc8 {[%clk 0:00:06.4]} 63... Ra2 {[%clk 0:00:18]} 64. Bf5+
{[%clk 0:00:06.2]} 1-0

[Event "Late-Titled-Tuesday-Blitz-February-20-2024"]
[Site "Chess.com"]
[Date "2024.02.20"]
[Round "5"]
[White "thechesscorner64"]
[Black "vanyakuba"]
[Result "0-1"]
[WhiteElo "2520"]
[BlackElo "2393"]
[TimeControl "180+1"]
[EndTime "14:56:44 PST"]
[Termination "vanyakuba won by checkmate"]

1. e4 {[%clk 0:03:00.9]} 1... d5 {[%clk 0:02:59.9]} 2. exd5 {[%clk 0:02:57.8]}
2... Qxd5 {[%clk 0:02:57.2]} 3. Nf3 {[%clk 0:02:53.9]} 3... Nf6 {[%clk
0:02:56.9]} 4. d4 {[%clk 0:02:50.6]} 4... Bg4 {[%clk 0:02:56.5]} 5. Be2 {[%clk
0:02:50.4]} 5... Nc6 {[%clk 0:02:56.3]} 6. h3 {[%clk 0:02:50.1]} 6... Bh5 {[%clk
0:02:52.5]} 7. c4 {[%clk 0:02:42.4]} 7... Qd6 {[%clk 0:02:27]} 8. Be3 {[%clk
0:02:38.6]} 8... O-O-O {[%clk 0:02:05.6]} 9. O-O {[%clk 0:02:30.4]} 9... Bxf3
{[%clk 0:01:58.8]} 10. Bxf3 {[%clk 0:02:29]} 10... Nxd4 {[%clk 0:01:59.1]} 11.
Nc3 {[%clk 0:02:27.2]} 11... e6 {[%clk 0:01:38.3]} 12. Bxd4 {[%clk 0:02:22.1]}
12... Qxd4 {[%clk 0:01:38]} 13. Qb3 {[%clk 0:02:22.4]} 13... Qb6 {[%clk
0:01:31.4]} 14. Qa4 {[%clk 0:02:18.7]} 14... Bc5 {[%clk 0:00:58.5]} 15. Rab1
{[%clk 0:02:10.7]} 15... Rd2 {[%clk 0:00:48.1]} 16. b4 {[%clk 0:02:10.1]} 16...
Bd4 {[%clk 0:00:47.9]} 17. c5 {[%clk 0:02:03.2]} 17... Qa6 {[%clk 0:00:47]} 18.
Qb3 {[%clk 0:01:54.2]} 18... Rd8 {[%clk 0:00:32.9]} 19. c6 {[%clk 0:01:19.8]}
19... b6 {[%clk 0:00:22.9]} 20. a4 {[%clk 0:00:57.7]} 20... Bxc3 {[%clk
0:00:21]} 21. Qxc3 {[%clk 0:00:56.1]} 21... Qd3 {[%clk 0:00:21.7]} 22. Qe5
{[%clk 0:00:50.8]} 22... Qd4 {[%clk 0:00:18]} 23. Qb5 {[%clk 0:00:49.6]} 23...
Qd3 {[%clk 0:00:17.1]} 24. Qe5 {[%clk 0:00:45.9]} 24... Qd4 {[%clk 0:00:17.2]}
25. Qg5 {[%clk 0:00:39]} 25... Nd5 {[%clk 0:00:15.6]} 26. a5 {[%clk 0:00:34.7]}
26... Nc3 {[%clk 0:00:13.1]} 27. Ra1 {[%clk 0:00:28.9]} 27... b5 {[%clk
0:00:12.3]} 28. a6 {[%clk 0:00:26.3]} 28... h6 {[%clk 0:00:11.9]} 29. Qh5 {[%clk
0:00:25.8]} 29... Qf6 {[%clk 0:00:09.2]} 30. Kh1 {[%clk 0:00:25.1]} 30... g5
{[%clk 0:00:07]} 31. Rac1 {[%clk 0:00:20.2]} 31... Nd5 {[%clk 0:00:04.9]} 32.
Bxd5 {[%clk 0:00:19.2]} 32... R2xd5 {[%clk 0:00:04.6]} 33. Qe2 {[%clk
0:00:18.3]} 33... Qd4 {[%clk 0:00:03.7]} 34. Rcd1 {[%clk 0:00:15.7]} 34... Qf4
{[%clk 0:00:04]} 35. Rxd5 {[%clk 0:00:14.8]} 35... Rxd5 {[%clk 0:00:04.9]} 36.
g3 {[%clk 0:00:14]} 36... Qc4 {[%clk 0:00:05.1]} 37. Qe1 {[%clk 0:00:11.8]}
37... Qd3 {[%clk 0:00:04.4]} 38. Kg1 {[%clk 0:00:10.6]} 38... Qd2 {[%clk
0:00:03.9]} 39. Qe4 {[%clk 0:00:10.4]} 39... Qd3 {[%clk 0:00:03.8]} 40. Qg4
{[%clk 0:00:07.6]} 40... Qf5 {[%clk 0:00:03.5]} 41. Qe2 {[%clk 0:00:07.4]} 41...
Qe5 {[%clk 0:00:02.4]} 42. Qh5 {[%clk 0:00:07.2]} 42... Qf5 {[%clk 0:00:02.4]}
43. Qxh6 {[%clk 0:00:07.4]} 43... Rd8 {[%clk 0:00:02.6]} 44. Qh5 {[%clk
0:00:07]} 44... Qf6 {[%clk 0:00:02.3]} 45. Qg4 {[%clk 0:00:07]} 45... Qf5 {[%clk
0:00:02.4]} 46. Qe2 {[%clk 0:00:06.8]} 46... Qd5 {[%clk 0:00:02.5]} 47. Qe3
{[%clk 0:00:06.6]} 47... Kb8 {[%clk 0:00:02.3]} 48. Re1 {[%clk 0:00:04.9]} 48...
Qd4 {[%clk 0:00:02.3]} 49. Qxg5 {[%clk 0:00:04.3]} 49... Qd5 {[%clk 0:00:02.2]}
50. Re3 {[%clk 0:00:02.1]} 50... Qd1+ {[%clk 0:00:02.2]} 51. Kg2 {[%clk
0:00:02.4]} 51... Qd5+ {[%clk 0:00:03.1]} 52. Rf3 {[%clk 0:00:02.8]} 52... Qxg5
{[%clk 0:00:03]} 53. Rxf7 {[%clk 0:00:02.1]} 53... Qd5+ {[%clk 0:00:03.9]} 54.
Kh2 {[%clk 0:00:01.6]} 54... e5 {[%clk 0:00:04.5]} 55. Rd7 {[%clk 0:00:01.6]}
55... Rxd7 {[%clk 0:00:04.1]} 56. cxd7 {[%clk 0:00:02.5]} 56... Qxd7 {[%clk
0:00:04.7]} 57. h4 {[%clk 0:00:03.4]} 57... Qd2 {[%clk 0:00:05]} 58. h5 {[%clk
0:00:04.3]} 58... Qxf2+ {[%clk 0:00:05.3]} 59. Kh3 {[%clk 0:00:04.6]} 59... e4
{[%clk 0:00:05.7]} 60. Kg4 {[%clk 0:00:05.5]} 60... Qf3+ {[%clk 0:00:05.8]} 61.
Kh4 {[%clk 0:00:04.5]} 61... e3 {[%clk 0:00:06.7]} 62. g4 {[%clk 0:00:04.9]}
62... e2 {[%clk 0:00:07.1]} 63. Kg5 {[%clk 0:00:05.8]} 63... e1=Q {[%clk
0:00:07.3]} 64. h6 {[%clk 0:00:06.7]} 64... Qe5+ {[%clk 0:00:07.5]} 65. Kg6
{[%clk 0:00:07.1]} 65... Qxg4+ {[%clk 0:00:07.5]} 66. Kh7 {[%clk 0:00:08]} 66...
Qe7+ {[%clk 0:00:07.4]} 67. Kh8 {[%clk 0:00:08.4]} 67... Qf6+ {[%clk 0:00:07.8]}
68. Kh7 {[%clk 0:00:08.5]} 68... Qgg6# {[%clk 0:00:07.8]} 0-1

[Event "Late-Titled-Tuesday-Blitz-February-20-2024"]
[Site "Chess.com"]
[Date "2024.02.20"]
[Round "5"]
[White "emeli_chess"]
[Black "ArtemDyachuk"]
[Result "0-1"]
[WhiteElo "2423"]
[BlackElo "2649"]
[TimeControl "180+1"]
[EndTime "14:56:45 PST"]
[Termination "ArtemDyachuk won on time"]

1. d4 {[%clk 0:03:00.9]} 1... d5 {[%clk 0:02:59]} 2. c4 {[%clk 0:03:00.1]} 2...
e6 {[%clk 0:02:59.4]} 3. Nc3 {[%clk 0:03:00.3]} 3... c6 {[%clk 0:02:59.9]} 4. e3
{[%clk 0:02:59.4]} 4... Nf6 {[%clk 0:02:58.5]} 5. Nf3 {[%clk 0:02:59]} 5... Bd6
{[%clk 0:02:58.7]} 6. Bd3 {[%clk 0:02:59]} 6... O-O {[%clk 0:02:58.5]} 7. O-O
{[%clk 0:02:59.1]} 7... Nbd7 {[%clk 0:02:58.5]} 8. e4 {[%clk 0:02:59.2]} 8...
dxe4 {[%clk 0:02:57]} 9. Nxe4 {[%clk 0:02:59.5]} 9... Nxe4 {[%clk 0:02:57.9]}
10. Bxe4 {[%clk 0:02:59.9]} 10... Nf6 {[%clk 0:02:57.6]} 11. Bc2 {[%clk
0:03:00]} 11... b6 {[%clk 0:02:57.1]} 12. Qe2 {[%clk 0:02:59.4]} 12... Bb7
{[%clk 0:02:56.4]} 13. c5 {[%clk 0:02:58.6]} 13... Be7 {[%clk 0:02:52.7]} 14.
Rd1 {[%clk 0:02:55.3]} 14... bxc5 {[%clk 0:02:46.4]} 15. dxc5 {[%clk 0:02:54.3]}
15... Qa5 {[%clk 0:02:46.3]} 16. Rd4 {[%clk 0:02:34.1]} 16... Bxc5 {[%clk
0:02:42.4]} 17. Rh4 {[%clk 0:02:31.9]} 17... Rfd8 {[%clk 0:02:10.6]} 18. b4
{[%clk 0:02:16.8]} 18... Bxb4 {[%clk 0:02:06.5]} 19. Bb2 {[%clk 0:02:17]} 19...
Ba6 {[%clk 0:01:29.2]} 20. Qe3 {[%clk 0:01:22]} 20... Bd2 {[%clk 0:01:26]} 21.
Nxd2 {[%clk 0:00:53.7]} 21... Qxd2 {[%clk 0:01:26.9]} 22. Bxf6 {[%clk
0:00:44.7]} 22... Qxe3 {[%clk 0:01:24.7]} 23. fxe3 {[%clk 0:00:41.3]} 23... gxf6
{[%clk 0:01:24.1]} 24. Bxh7+ {[%clk 0:00:39.4]} 24... Kf8 {[%clk 0:01:24.2]} 25.
Rc1 {[%clk 0:00:31.1]} 25... Rd6 {[%clk 0:01:21.2]} 26. Be4 {[%clk 0:00:29.2]}
26... Ke7 {[%clk 0:01:04.1]} 27. Rxc6 {[%clk 0:00:26.2]} 27... Rxc6 {[%clk
0:01:04.2]} 28. Bxc6 {[%clk 0:00:26.3]} 28... Rc8 {[%clk 0:01:04.6]} 29. Bf3
{[%clk 0:00:22]} 29... Rc1+ {[%clk 0:01:01.7]} 30. Kf2 {[%clk 0:00:21.7]} 30...
Rc2+ {[%clk 0:01:02.6]} 31. Kg3 {[%clk 0:00:21.5]} 31... Rxa2 {[%clk 0:01:03.5]}
32. Rh8 {[%clk 0:00:19.3]} 32... Bb5 {[%clk 0:01:02.6]} 33. h4 {[%clk
0:00:18.4]} 33... Ra1 {[%clk 0:00:53.9]} 34. h5 {[%clk 0:00:17.1]} 34... Rh1
{[%clk 0:00:54.4]} 35. Ra8 {[%clk 0:00:15.8]} 35... a6 {[%clk 0:00:53.1]} 36.
Ra7+ {[%clk 0:00:15.9]} 36... Kf8 {[%clk 0:00:53.5]} 37. Kf4 {[%clk 0:00:14.5]}
37... Kg7 {[%clk 0:00:53.7]} 38. g4 {[%clk 0:00:13.1]} 38... Rg1 {[%clk
0:00:48.7]} 39. Bb7 {[%clk 0:00:11.4]} 39... e5+ {[%clk 0:00:46.9]} 40. Kf3
{[%clk 0:00:10.3]} 40... Bd7 {[%clk 0:00:36.9]} 41. Bd5 {[%clk 0:00:07.5]} 41...
Bxg4+ {[%clk 0:00:29.1]} 42. Kf2 {[%clk 0:00:07.6]} 42... Rd1 {[%clk 0:00:30]}
43. Bxf7 {[%clk 0:00:07]} 43... Kh6 {[%clk 0:00:20.7]} 44. Rxa6 {[%clk
0:00:06.8]} 44... Kg5 {[%clk 0:00:21.2]} 45. Be8 {[%clk 0:00:06.1]} 45... Rd8
{[%clk 0:00:19.3]} 46. Bg6 {[%clk 0:00:05.6]} 46... Rd2+ {[%clk 0:00:17]} 47.
Kg3 {[%clk 0:00:05]} 47... Re2 {[%clk 0:00:16.6]} 48. e4 {[%clk 0:00:05]} 48...
Re3+ {[%clk 0:00:16.6]} 49. Kf2 {[%clk 0:00:05.3]} 49... Rh3 {[%clk 0:00:16.3]}
50. Rb6 {[%clk 0:00:04]} 50... Bxh5 {[%clk 0:00:14]} 51. Bxh5 {[%clk 0:00:03.8]}
51... Rxh5 {[%clk 0:00:14.3]} 52. Re6 {[%clk 0:00:02.4]} 52... Rh4 {[%clk
0:00:13.9]} 53. Kf3 {[%clk 0:00:02.1]} 53... Rh3+ {[%clk 0:00:14.2]} 54. Kf2
{[%clk 0:00:02.4]} 54... Rc3 {[%clk 0:00:12.2]} 55. Rd6 {[%clk 0:00:01.9]} 55...
Rc4 {[%clk 0:00:11.6]} 56. Kf3 {[%clk 0:00:02.1]} 56... Rc1 {[%clk 0:00:11]} 57.
Ke3 {[%clk 0:00:01.7]} 57... Re1+ {[%clk 0:00:10.8]} 58. Kf3 {[%clk 0:00:01.8]}
58... Rf1+ {[%clk 0:00:11.1]} 59. Ke3 {[%clk 0:00:02]} 59... Kg4 {[%clk
0:00:11.3]} 60. Rd8 {[%clk 0:00:01.4]} 60... Rf3+ {[%clk 0:00:11.1]} 61. Ke2
{[%clk 0:00:01.6]} 61... Kf4 {[%clk 0:00:11.5]} 0-1

[Event "Late-Titled-Tuesday-Blitz-February-20-2024"]
[Site "Chess.com"]
[Date "2024.02.20"]
[Round "5"]
[White "Hasangatin_Ramil"]
[Black "Msb2"]
[Result "0-1"]
[WhiteElo "2675"]
[BlackElo "3008"]
[TimeControl "180+1"]
[EndTime "14:56:47 PST"]
[Termination "Msb2 won on time"]

1. e4 {[%clk 0:03:00.9]} 1... e6 {[%clk 0:03:00.2]} 2. d3 {[%clk 0:03:00.5]}
2... d5 {[%clk 0:03:00.6]} 3. Qe2 {[%clk 0:03:00.9]} 3... Nc6 {[%clk 0:03:00.8]}
4. Nf3 {[%clk 0:03:00]} 4... e5 {[%clk 0:03:01.5]} 5. c3 {[%clk 0:02:59.9]} 5...
Nf6 {[%clk 0:02:59.4]} 6. g3 {[%clk 0:03:00.1]} 6... dxe4 {[%clk 0:02:59.5]} 7.
dxe4 {[%clk 0:03:01]} 7... a5 {[%clk 0:03:00.1]} 8. Bg2 {[%clk 0:03:00.9]} 8...
Bc5 {[%clk 0:03:00.9]} 9. O-O {[%clk 0:03:00.2]} 9... O-O {[%clk 0:03:01.6]} 10.
Nh4 {[%clk 0:02:48.5]} 10... Bg4 {[%clk 0:02:51.3]} 11. Bf3 {[%clk 0:02:48.4]}
11... Be6 {[%clk 0:02:45.1]} 12. Be3 {[%clk 0:02:46.9]} 12... Qe7 {[%clk
0:02:43.4]} 13. Nd2 {[%clk 0:02:43.8]} 13... Rad8 {[%clk 0:02:41.7]} 14. Nf5
{[%clk 0:02:40.4]} 14... Bxf5 {[%clk 0:02:37.1]} 15. exf5 {[%clk 0:02:41.3]}
15... e4 {[%clk 0:02:10.5]} 16. Bxc5 {[%clk 0:02:24.9]} 16... Qxc5 {[%clk
0:02:11.4]} 17. Nxe4 {[%clk 0:02:24.7]} 17... Qxf5 {[%clk 0:02:12.1]} 18. Nxf6+
{[%clk 0:02:17.6]} 18... Qxf6 {[%clk 0:02:13]} 19. Bxc6 {[%clk 0:02:05.8]} 19...
Qxc6 {[%clk 0:02:11.3]} 20. Rad1 {[%clk 0:02:05.7]} 20... Rde8 {[%clk
0:02:08.4]} 21. Qd2 {[%clk 0:02:01.4]} 21... h5 {[%clk 0:02:06]} 22. h4 {[%clk
0:02:00.5]} 22... g6 {[%clk 0:02:05.1]} 23. Rfe1 {[%clk 0:02:00.2]} 23... Qb6
{[%clk 0:02:04.4]} 24. b3 {[%clk 0:01:55.1]} 24... Qc5 {[%clk 0:02:00.1]} 25.
Rxe8 {[%clk 0:01:44.8]} 25... Rxe8 {[%clk 0:02:01]} 26. Re1 {[%clk 0:01:45.1]}
26... Rxe1+ {[%clk 0:01:51.9]} 27. Qxe1 {[%clk 0:01:46]} 27... Kg7 {[%clk
0:01:52.2]} 28. c4 {[%clk 0:01:33.8]} 28... b6 {[%clk 0:01:47.1]} 29. Qc3+
{[%clk 0:01:33.2]} 29... Kg8 {[%clk 0:01:47.7]} 30. Kf1 {[%clk 0:01:26.1]} 30...
Qc6 {[%clk 0:01:45.5]} 31. Ke2 {[%clk 0:01:16.8]} 31... a4 {[%clk 0:01:42.1]}
32. b4 {[%clk 0:01:14.9]} 32... Qe4+ {[%clk 0:01:41]} 33. Kd2 {[%clk 0:01:08.4]}
33... Qb1 {[%clk 0:01:37.1]} 34. a3 {[%clk 0:01:06.4]} 34... Qa2+ {[%clk
0:01:24.6]} 35. Ke3 {[%clk 0:01:04.8]} 35... c5 {[%clk 0:01:24.6]} 36. bxc5
{[%clk 0:00:57.4]} 36... bxc5 {[%clk 0:01:25.5]} 37. Qd3 {[%clk 0:00:57.7]}
37... Qb2 {[%clk 0:01:24.1]} 38. f3 {[%clk 0:00:53]} 38... Kg7 {[%clk
0:01:19.8]} 39. Ke4 {[%clk 0:00:53.1]} 39... Qf2 {[%clk 0:01:08.4]} 40. Kd5
{[%clk 0:00:50.2]} 40... Qxg3 {[%clk 0:01:04.9]} 41. Kxc5 {[%clk 0:00:48.8]}
41... Qxh4 {[%clk 0:01:05.4]} 42. Kb5 {[%clk 0:00:44.2]} 42... Qg5+ {[%clk
0:01:00.7]} 43. c5 {[%clk 0:00:44]} 43... h4 {[%clk 0:01:01.4]} 44. Qd4+ {[%clk
0:00:36.2]} 44... Kg8 {[%clk 0:00:38.6]} 45. f4 {[%clk 0:00:35.3]} 45... Qe7
{[%clk 0:00:29.4]} 46. c6 {[%clk 0:00:30.3]} 46... h3 {[%clk 0:00:30]} 47. Qd7
{[%clk 0:00:17.3]} 47... Qe2+ {[%clk 0:00:29.4]} 48. Kb6 {[%clk 0:00:17.4]}
48... Qe3+ {[%clk 0:00:28.9]} 49. Ka6 {[%clk 0:00:15.1]} 49... h2 {[%clk
0:00:20.3]} 50. c7 {[%clk 0:00:11.3]} 50... h1=Q {[%clk 0:00:20.8]} 51. c8=Q+
{[%clk 0:00:11.5]} 51... Kg7 {[%clk 0:00:21.4]} 52. Qb5 {[%clk 0:00:07]} 52...
Qhe4 {[%clk 0:00:16.1]} 53. Qc7 {[%clk 0:00:02.5]} 53... Qe6+ {[%clk 0:00:14.3]}
54. Qcb6 {[%clk 0:00:02]} 54... Q3xb6+ {[%clk 0:00:10]} 55. Qxb6 {[%clk
0:00:02.9]} 55... Qxb6+ {[%clk 0:00:10.8]} 56. Kxb6 {[%clk 0:00:03.5]} 56... f5
{[%clk 0:00:09.5]} 57. Kb5 {[%clk 0:00:03.4]} 57... g5 {[%clk 0:00:09.4]} 58.
Kxa4 {[%clk 0:00:03.5]} 58... g4 {[%clk 0:00:09.3]} 0-1

[Event "Late-Titled-Tuesday-Blitz-February-20-2024"]
[Site "Chess.com"]
[Date "2024.02.20"]
[Round "5"]
[White "ahkashefi2800"]
[Black "pavet"]
[Result "0-1"]
[WhiteElo "2545"]
[BlackElo "2749"]
[TimeControl "180+1"]
[EndTime "14:56:49 PST"]
[Termination "pavet won by checkmate"]

1. Nf3 {[%clk 0:03:00]} 1... Nf6 {[%clk 0:03:00]} 2. g3 {[%clk 0:03:00.1]} 2...
g6 {[%clk 0:03:00.5]} 3. Bg2 {[%clk 0:02:59]} 3... Bg7 {[%clk 0:03:01.2]} 4. O-O
{[%clk 0:02:59]} 4... O-O {[%clk 0:03:01.8]} 5. c4 {[%clk 0:02:55.3]} 5... d5
{[%clk 0:03:00.8]} 6. d3 {[%clk 0:02:42.8]} 6... c6 {[%clk 0:02:55.8]} 7. Nc3
{[%clk 0:02:39.2]} 7... dxc4 {[%clk 0:02:55.5]} 8. dxc4 {[%clk 0:02:38.8]} 8...
Qa5 {[%clk 0:02:56.1]} 9. Qc2 {[%clk 0:02:32.5]} 9... Na6 {[%clk 0:02:53.3]} 10.
a3 {[%clk 0:02:31.9]} 10... Qh5 {[%clk 0:02:52.5]} 11. b4 {[%clk 0:02:19.1]}
11... Bh3 {[%clk 0:02:49.4]} 12. Bb2 {[%clk 0:02:14.2]} 12... Nc7 {[%clk
0:02:45.5]} 13. Rad1 {[%clk 0:01:43.4]} 13... Ne6 {[%clk 0:02:38.3]} 14. Nb1
{[%clk 0:01:34.1]} 14... Ng4 {[%clk 0:02:16.6]} 15. Bxg7 {[%clk 0:01:33.7]}
15... Kxg7 {[%clk 0:02:16.7]} 16. Nbd2 {[%clk 0:01:02.1]} 16... a5 {[%clk
0:02:12.3]} 17. Rfe1 {[%clk 0:00:38.5]} 17... axb4 {[%clk 0:02:10.9]} 18. axb4
{[%clk 0:00:38.8]} 18... Rfd8 {[%clk 0:02:09.5]} 19. Nf1 {[%clk 0:00:38.8]}
19... Bxg2 {[%clk 0:02:03.7]} 20. Kxg2 {[%clk 0:00:38.7]} 20... Nf6 {[%clk
0:01:54.2]} 21. Qc3 {[%clk 0:00:38.6]} 21... Qf5 {[%clk 0:01:49]} 22. Ne3 {[%clk
0:00:38.5]} 22... Qe4 {[%clk 0:01:49.3]} 23. Kg1 {[%clk 0:00:37.8]} 23... h5
{[%clk 0:01:46.6]} 24. h4 {[%clk 0:00:37.2]} 24... Rxd1 {[%clk 0:01:40.7]} 25.
Rxd1 {[%clk 0:00:37]} 25... Ra2 {[%clk 0:01:40.4]} 26. Rd2 {[%clk 0:00:36.7]}
26... Qb1+ {[%clk 0:01:28.6]} 27. Rd1 {[%clk 0:00:35]} 27... Qb2 {[%clk
0:01:27]} 28. Qxb2 {[%clk 0:00:09.7]} 28... Rxb2 {[%clk 0:01:27.9]} 29. b5
{[%clk 0:00:07.6]} 29... cxb5 {[%clk 0:01:27.1]} 30. cxb5 {[%clk 0:00:07.3]}
30... Rxe2 {[%clk 0:01:19.1]} 31. Nd4 {[%clk 0:00:07.2]} 31... Nxd4 {[%clk
0:01:16.8]} 32. Rxd4 {[%clk 0:00:07.4]} 32... Rb2 {[%clk 0:01:17.5]} 33. Rc4
{[%clk 0:00:07.7]} 33... Rxb5 {[%clk 0:01:17.1]} 34. Rc7 {[%clk 0:00:08]} 34...
e6 {[%clk 0:01:17.4]} 35. Nc4 {[%clk 0:00:07.6]} 35... Rb1+ {[%clk 0:01:03.3]}
36. Kg2 {[%clk 0:00:07.8]} 36... Rc1 {[%clk 0:01:04]} 37. Rc8 {[%clk 0:00:02.3]}
37... b5 {[%clk 0:01:03.9]} 38. Nd6 {[%clk 0:00:02.8]} 38... Rxc8 {[%clk
0:01:04]} 39. Nxc8 {[%clk 0:00:03.3]} 39... b4 {[%clk 0:01:04.2]} 40. Nb6 {[%clk
0:00:03.7]} 40... Nd5 {[%clk 0:01:02.7]} 41. Nc4 {[%clk 0:00:04]} 41... Kf6
{[%clk 0:00:59.8]} 42. Kf3 {[%clk 0:00:03.6]} 42... Kf5 {[%clk 0:00:53.7]} 43.
Ke2 {[%clk 0:00:02.7]} 43... e5 {[%clk 0:00:53.8]} 44. Kd3 {[%clk 0:00:02.3]}
44... f6 {[%clk 0:00:52.8]} 45. f3 {[%clk 0:00:01.9]} 45... g5 {[%clk
0:00:50.5]} 46. hxg5 {[%clk 0:00:02]} 46... fxg5 {[%clk 0:00:50.8]} 47. Nd6+
{[%clk 0:00:02.4]} 47... Ke6 {[%clk 0:00:45]} 48. Ne4 {[%clk 0:00:02.8]} 48...
Kf5 {[%clk 0:00:38]} 49. Nd6+ {[%clk 0:00:03.1]} 49... Kg6 {[%clk 0:00:31.6]}
50. Ne4 {[%clk 0:00:02.5]} 50... h4 {[%clk 0:00:29.6]} 51. gxh4 {[%clk
0:00:02.9]} 51... gxh4 {[%clk 0:00:30.5]} 52. Nf2 {[%clk 0:00:03.2]} 52... b3
{[%clk 0:00:25.9]} 53. Ne4 {[%clk 0:00:02]} 53... Kf5 {[%clk 0:00:25.2]} 54. Nf2
{[%clk 0:00:02.3]} 54... Kf4 {[%clk 0:00:25.5]} 55. Ke2 {[%clk 0:00:02.8]} 55...
Nc3+ {[%clk 0:00:22]} 56. Kd3 {[%clk 0:00:01.9]} 56... Kxf3 {[%clk 0:00:22.6]}
57. Nh3 {[%clk 0:00:01.8]} 57... Nd5 {[%clk 0:00:18.9]} 58. Ng5+ {[%clk
0:00:02.3]} 58... Kg2 {[%clk 0:00:19.4]} 59. Ke2 {[%clk 0:00:02.3]} 59... b2
{[%clk 0:00:18.8]} 60. Ne4 {[%clk 0:00:02.5]} 60... b1=Q {[%clk 0:00:18.7]} 61.
Nd2 {[%clk 0:00:02.6]} 61... Nf4+ {[%clk 0:00:17]} 62. Ke3 {[%clk 0:00:02.6]}
62... Qd3# {[%clk 0:00:17.8]} 0-1